fUST/lending_fUST_20250426
["ID","MTS","AMOUNT","RATE_DAILY","PERIOD"]
[359039227,1745667042564,-200.0,0.00016986,2]
[359039229,1745667042573,-153.388,0.00016986,2]
[359039231,1745667042582,-400.0,0.00016986,2]
[359039233,1745667042593,-460.57,0.00016986,2]
[359039235,1745667042603,-400.0,0.00016986,2]
[359039237,1745667042612,-400.0,0.00016986,2]
[359039239,1745667042622,-227.33461903,0.00016986,2]
[359039241,1745667042634,-200.0,0.00016986,2]
[359039243,1745667042643,-400.0,0.00016986,2]
[359039245,1745667042653,-200.0,0.00016986,2]
[359039247,1745667042664,-400.0,0.00016986,2]
[359039249,1745667042675,-200.0,0.00016986,2]
[359039251,1745667042685,-400.0,0.00016986,2]
[359039253,1745667042696,-400.0,0.00016986,2]
[359039255,1745667042706,-400.0,0.00016986,2]
[359039257,1745667042716,-400.0,0.00016986,2]
[359039259,1745667042726,-400.0,0.00016986,2]
[359039261,1745667042736,-200.0,0.00016986,2]
[359039263,1745667042746,-400.0,0.00016986,2]
[359039265,1745667042756,-400.0,0.00016986,2]
[359039267,1745667042766,-197.71142991,0.00016986,2]
[359039269,1745667042776,-400.0,0.00016986,2]
[359039271,1745667042787,-400.0,0.00016986,2]
[359039273,1745667042797,-400.0,0.00016986,2]
[359039275,1745667042807,-400.0,0.00016986,2]
[359039277,1745667042816,-200.0,0.00016986,2]
[359039279,1745667042826,-400.0,0.00016986,2]
[359039281,1745667042836,-400.0,0.00016986,2]
[359039283,1745667042846,-400.0,0.00016986,2]
[359039285,1745667042855,-200.0,0.00016986,2]
[359039287,1745667042865,-200.0,0.00016986,2]
[359039289,1745667042875,-400.0,0.00016986,2]
[359039291,1745667042885,-200.0,0.00016986,2]
[359039293,1745667042894,-200.0,0.00016986,2]
[359039295,1745667042904,-300.0,0.00016986,2]
[359039297,1745667042914,-200.0,0.00016986,2]
[359039299,1745667042924,-400.0,0.00016986,2]
[359039301,1745667042934,-200.0,0.00016986,2]
[359039302,1745667042944,-400.0,0.00016986,2]
[359039304,1745667042954,-400.0,0.00016986,2]
[359039306,1745667042965,-200.0,0.00016986,2]
[359039308,1745667042974,-200.0,0.00016986,2]
[359039310,1745667042985,-366.81,0.00016986,2]
[359039312,1745667042994,-300.0,0.00016986,2]
[359039314,1745667043004,-400.0,0.00016986,2]
[359039315,1745667043014,-1332.7,0.00016986,2]
[359039316,1745667043024,-200.0,0.00016986,2]
[359039317,1745667043034,-882.06,0.00016986,2]
[359039318,1745667043046,-400.0,0.00016986,2]
[359039319,1745667043056,-400.0,0.00016986,2]
[359039320,1745667043234,-200.0,0.00016986,2]
[359039321,1745667043246,-200.0,0.00016986,2]
[359039322,1745667043255,-400.0,0.00016986,2]
[359039323,1745667043265,-374.54,0.00016986,2]
[359039325,1745667043276,-471.58,0.00016986,2]
[359039326,1745667043285,-400.0,0.00016986,2]
[359039328,1745667043297,-400.0,0.00016986,2]
[359039330,1745667043307,-200.0,0.00016986,2]
[359039331,1745667043318,-300.0,0.00016986,2]
[359039333,1745667043327,-400.0,0.00016986,2]
[359039335,1745667043337,-400.0,0.00016986,2]
[359039337,1745667043346,-541.51,0.00016986,2]
[359039339,1745667043355,-200.0,0.00016986,2]
[359039342,1745667043365,-213.56278647,0.00016986,2]
[359039344,1745667043375,-400.0,0.00016986,2]
[359039346,1745667043384,-400.0,0.00016986,2]
[359039348,1745667043393,-1672.26,0.00016986,2]
[359039350,1745667043404,-815.37,0.00016986,2]
[359039352,1745667043413,-204.09398479,0.00016986,2]
[359039354,1745667043423,-200.0,0.00016986,2]
[359039356,1745667043432,-531.42,0.00016986,2]
[359039358,1745667043442,-472.47,0.00016986,2]
[359039360,1745667043451,-400.0,0.00016986,2]
[359039362,1745667043461,-400.0,0.00016986,2]
[359039364,1745667043470,-400.0,0.00016986,2]
[359039366,1745667043480,-400.0,0.00016986,2]
[359039368,1745667043490,-400.0,0.00016986,2]
[359039369,1745667043499,-400.0,0.00016986,2]
[359039371,1745667043509,-400.0,0.00016986,2]
[359039374,1745667043520,-2498.76,0.00016986,2]
[359039375,1745667043529,-400.0,0.00016986,2]
[359039377,1745667043540,-400.0,0.00016986,2]
[359039379,1745667043550,-4339.8,0.00016986,2]
[359039381,1745667043559,-400.0,0.00016986,2]
[359039383,1745667043569,-400.0,0.00016986,2]
[359039385,1745667043578,-400.0,0.00016986,2]
[359039387,1745667043588,-400.0,0.00016986,2]
[359039389,1745667043597,-400.0,0.00016986,2]
[359039391,1745667043607,-400.0,0.00016986,2]
[359039393,1745667043617,-400.0,0.00016986,2]
[359039395,1745667043627,-182.441015,0.00016986,2]
[359039397,1745667043641,-400.0,0.00016986,2]
[359039399,1745667043650,-1409.49,0.00016986,2]
[359039401,1745667043660,-400.0,0.00016986,2]
[359039404,1745667043670,-400.0,0.00016986,2]
[359039406,1745667043693,-479.95963627,0.00016986,2]
[359039408,1745667043704,-200.0,0.00016986,2]
[359039411,1745667043714,-400.0,0.00016986,2]
[359039413,1745667043725,-400.0,0.00016986,2]
[359039415,1745667043735,-783.96,0.00016986,2]
[359039417,1745667043745,-400.0,0.00016986,2]
[359039419,1745667043755,-400.0,0.00016986,2]
[359039421,1745667043765,-400.0,0.00016986,2]
[359039423,1745667043775,-333.42294168,0.00016986,2]
[359039425,1745667043786,-1624.65,0.00016986,2]
[359039427,1745667043798,-400.0,0.00016986,2]
[359039429,1745667043808,-872.04,0.00016986,2]
[359039431,1745667043818,-500.0,0.00016986,2]
[359039433,1745667043828,-801.47,0.00016986,2]
[359039435,1745667043838,-400.0,0.00016986,2]
[359039437,1745667043848,-200.0,0.00016986,2]
[359039439,1745667043858,-400.0,0.00016986,2]
[359039441,1745667043869,-400.0,0.00016986,2]
[359039443,1745667043879,-400.0,0.00016986,2]
[359039445,1745667043889,-400.0,0.00016986,2]
[359039447,1745667043899,-400.0,0.00016986,2]
[359039448,1745667043909,-400.0,0.00016986,2]
[359039450,1745667043919,-400.0,0.00016986,2]
[359039451,1745667043929,-400.0,0.00016986,2]
[359039453,1745667043938,-207.79615953,0.00016986,2]
[359039455,1745667043948,-400.0,0.00016986,2]
[359039457,1745667043958,-338.48062462,0.00016986,2]
[359039459,1745667043968,-400.0,0.00016986,2]
[359039461,1745667043978,-400.0,0.00016986,2]
[359039463,1745667043988,-400.0,0.00016986,2]
[359039465,1745667043999,-400.0,0.00016986,2]
[359039467,1745667044009,-446.79,0.00016986,2]
[359039469,1745667044019,-200.0,0.00016986,2]
[359039471,1745667044028,-400.0,0.00016986,2]
[359039473,1745667044039,-400.0,0.00016986,2]
[359039475,1745667044049,-200.0,0.00016986,2]
[359039477,1745667044059,-400.0,0.00016986,2]
[359039479,1745667044069,-213.6293504,0.00016986,2]
[359039481,1745667044079,-208.91065576,0.00016986,2]
[359039482,1745667044089,-400.0,0.00016986,2]
[359039484,1745667044098,-325.9,0.00016986,2]
[359039486,1745667044108,-400.0,0.00016986,2]
[359039488,1745667044118,-400.0,0.00016986,2]
[359039490,1745667044128,-509.72,0.00016986,2]
[359039492,1745667044138,-400.0,0.00016986,2]
[359039494,1745667044149,-1485.3,0.00016986,2]
[359039496,1745667044159,-200.0,0.00016986,2]
[359039498,1745667044169,-200.0,0.00016986,2]
[359039500,1745667044181,-200.0,0.00016986,2]
[359039502,1745667044191,-400.0,0.00016986,2]
[359039504,1745667044201,-217.3796734,0.00016986,2]
[359039506,1745667044212,-1502.02,0.00016986,2]
[359039508,1745667044222,-400.0,0.00016986,2]
[359039510,1745667044232,-200.0,0.00016986,2]
[359039512,1745667044243,-400.0,0.00016986,2]
[359039514,1745667044253,-205.27022728,0.00016986,2]
[359039516,1745667044263,-400.0,0.00016986,2]
[359039518,1745667044272,-400.0,0.00016986,2]
[359039520,1745667044282,-400.0,0.00016986,2]
[359039522,1745667044298,-400.0,0.00016986,2]
[359039524,1745667044308,-400.0,0.00016986,2]
[359039526,1745667044318,-400.0,0.00016986,2]
[359039528,1745667044328,-2079.96,0.00016986,2]
[359039530,1745667044339,-400.0,0.00016986,2]
[359039532,1745667044348,-413.377007,0.00016986,2]
[359039533,1745667044358,-1215.94,0.00016986,2]
[359039536,1745667044368,-1201.28,0.00016986,2]
[359039537,1745667044379,-200.0,0.00016986,2]
[359039539,1745667044389,-420.68,0.00016986,2]
[359039541,1745667044398,-400.0,0.00016986,2]
[359039543,1745667044408,-200.0,0.00016986,2]
[359039545,1745667044418,-400.0,0.00016986,2]
[359039547,1745667044428,-400.0,0.00016986,2]
[359039549,1745667044438,-210.03596857,0.00016986,2]
[359039551,1745667044447,-400.0,0.00016986,2]
[359039553,1745667044458,-400.0,0.00016986,2]
[359039555,1745667044467,-1268.08,0.00016986,2]
[359039557,1745667044479,-200.0,0.00016986,2]
[359039559,1745667044489,-894.4,0.00016986,2]
[359039561,1745667044499,-400.0,0.00016986,2]
[359039563,1745667044509,-1467.83,0.00016986,2]
[359039565,1745667044520,-200.0,0.00016986,2]
[359039567,1745667044530,-583.58,0.00016986,2]
[359039569,1745667044540,-479.86,0.00016986,2]
[359039571,1745667044551,-400.0,0.00016986,2]
[359039572,1745667044561,-400.0,0.00016986,2]
[359039574,1745667044571,-571.69,0.00016986,2]
[359039576,1745667044582,-400.0,0.00016986,2]
[359039578,1745667044592,-471.06322771,0.00016986,2]
[359039580,1745667044602,-200.0,0.00016986,2]
[359039582,1745667044612,-400.0,0.00016986,2]
[359039584,1745667044622,-400.0,0.00016986,2]
[359039586,1745667044636,-400.0,0.00016986,2]
[359039588,1745667044646,-1769.82,0.00016986,2]
[359039590,1745667044656,-204.19351972,0.00016986,2]
[359039592,1745667044665,-235.14040774,0.00016986,2]
[359039594,1745667044676,-400.0,0.00016986,2]
[359039596,1745667044686,-400.0,0.00016986,2]
[359039598,1745667044696,-400.0,0.00016986,2]
[359039600,1745667044706,-400.0,0.00016986,2]
[359039602,1745667044716,-408.65,0.00016986,2]
[359039604,1745667044726,-1756.86,0.00016986,2]
[359039606,1745667044736,-351.63400742,0.00016986,2]
[359039608,1745667044746,-400.0,0.00016986,2]
[359039610,1745667044756,-400.0,0.00016986,2]
[359039612,1745667044767,-400.0,0.00016986,2]
[359039613,1745667044777,-200.0,0.00016986,2]
[359039615,1745667044786,-204.85053288,0.00016986,2]
[359039617,1745667044797,-1630.76,0.00016986,2]
[359039619,1745667044807,-1580.52,0.00016986,2]
[359039621,1745667044817,-400.0,0.00016986,2]
[359039623,1745667044827,-400.0,0.00016986,2]
[359039625,1745667044837,-400.0,0.00016986,2]
[359039627,1745667044847,-613.58,0.00016986,2]
[359039629,1745667044857,-400.0,0.00016986,2]
[359039631,1745667044867,-400.0,0.00016986,2]
[359039633,1745667044876,-1204.46,0.00016986,2]
[359039634,1745667044886,-151.0,0.00017,2]
[359039636,1745667044896,-151.0,0.00017,2]
[359039638,1745667044906,-656.65474689,0.00017,2]
[359039640,1745667044916,-151.0,0.000171,2]
[359039642,1745667044926,-161.0384115,0.00017126,2]
[359039644,1745667044936,-151.0,0.000172,2]
[359039646,1745667044946,-151.0,0.000172,2]
[359039648,1745667044956,-400.0,0.0001726,2]
[359039650,1745667044966,-400.0,0.0001726,2]
[359039652,1745667044976,-400.0,0.0001726,2]
[359039654,1745667044985,-400.0,0.0001726,2]
[359039656,1745667044995,-400.0,0.0001726,2]
[359039658,1745667045005,-400.0,0.0001726,2]
[359039660,1745667045015,-307.67380663,0.0001726,2]
[359039662,1745667045026,-500.0,0.0001726,2]
[359039664,1745667045036,-310.47654712,0.0001726,2]
[359039666,1745667045048,-400.0,0.0001726,2]
[359039668,1745667045059,-400.0,0.0001726,2]
[359039670,1745667045070,-400.0,0.0001726,2]
[359039672,1745667045081,-400.0,0.0001726,2]
[359039673,1745667045092,-400.0,0.0001726,2]
[359039675,1745667045102,-400.0,0.0001726,2]
[359039677,1745667045112,-400.0,0.0001726,2]
[359039679,1745667045123,-400.0,0.0001726,2]
[359039681,1745667045134,-373.14606108,0.0001726,2]
[359039683,1745667045145,-400.0,0.0001726,2]
[359039685,1745667045157,-400.0,0.0001726,2]
[359039687,1745667045168,-306.8906821,0.0001726,2]
[359039689,1745667045178,-347.45748563,0.0001726,2]
[359039691,1745667045191,-400.0,0.0001726,2]
[359039693,1745667045203,-400.0,0.0001726,2]
[359039695,1745667045214,-460.57,0.0001726,2]
[359039697,1745667045226,-400.0,0.0001726,2]
[359039699,1745667045238,-400.0,0.0001726,2]
[359039701,1745667045249,-300.0,0.0001726,2]
[359039703,1745667045260,-486.7059137,0.0001726,2]
[359039705,1745667045270,-400.0,0.0001726,2]
[359039707,1745667045280,-286.82424954,0.0001726,2]
[359039709,1745667045293,-400.0,0.0001726,2]
[359039711,1745667045305,-400.0,0.0001726,2]
[359039713,1745667045316,-300.0,0.0001726,2]
[359039715,1745667045327,-400.0,0.0001726,2]
[359039717,1745667045337,-300.0,0.0001726,2]
[359039719,1745667045349,-300.0,0.0001726,2]
[359039721,1745667045359,-400.0,0.0001726,2]
[359039723,1745667045370,-400.0,0.0001726,2]
[359039725,1745667045381,-199.06620683,0.0001726,2]
[359039727,1745667045391,-400.0,0.0001726,2]
[359039729,1745667045404,-400.0,0.0001726,2]
[359039730,1745667045418,-400.0,0.0001726,2]
[359039732,1745667045432,-153.154483,0.0001726,2]
[359039734,1745667045445,-400.0,0.0001726,2]
[359039737,1745667045457,-151.0,0.0001726,2]
[359039739,1745667045471,-400.0,0.0001726,2]
[359039740,1745667045482,-400.0,0.0001726,2]
[359039742,1745667045495,-400.0,0.0001726,2]
[359039744,1745667045507,-1332.7,0.0001726,2]
[359039746,1745667045518,-882.06,0.0001726,2]
[359039748,1745667045530,-759.196675,0.0001726,2]
[359039750,1745667045541,-400.0,0.0001726,2]
[359039752,1745667045551,-151.0,0.0001726,2]
[359039754,1745667045562,-759.196675,0.0001726,2]
[359039756,1745667045572,-400.0,0.0001726,2]
[359039758,1745667045584,-400.0,0.0001726,2]
[359039760,1745667045596,-471.58,0.0001726,2]
[359039762,1745667045607,-400.0,0.0001726,2]
[359039764,1745667045619,-300.0,0.0001726,2]
[359039766,1745667045630,-400.0,0.0001726,2]
[359039768,1745667045645,-400.0,0.0001726,2]
[359039771,1745667045656,-541.51,0.0001726,2]
[359039772,1745667045667,-400.0,0.0001726,2]
[359039775,1745667045679,-356.75546656,0.0001726,2]
[359039777,1745667045691,-1672.26,0.0001726,2]
[359039779,1745667045703,-815.37,0.0001726,2]
[359039781,1745667045715,-151.0,0.0001726,2]
[359039783,1745667045725,-472.47,0.0001726,2]
[359039785,1745667045735,-233.49911978,0.0001726,2]
[359039786,1745667045746,-400.0,0.0001726,2]
[359039788,1745667045757,-400.0,0.0001726,2]
[359039790,1745667045768,-400.0,0.0001726,2]
[359039792,1745667045779,-300.0,0.0001726,2]
[359039794,1745667045789,-168.19,0.0001726,2]
[359039796,1745667045799,-300.0,0.0001726,2]
[359039798,1745667045810,-2498.76,0.0001726,2]
[359039800,1745667045821,-400.0,0.0001726,2]
[359039802,1745667045831,-400.0,0.0001726,2]
[359039804,1745667045841,-4339.8,0.0001726,2]
[359039806,1745667045853,-306.05646831,0.0001726,2]
[359039808,1745667045863,-400.0,0.0001726,2]
[359039810,1745667045873,-400.0,0.0001726,2]
[359039812,1745667045883,-400.0,0.0001726,2]
[359039817,1745667046069,-400.0,0.0001726,2]
[359039819,1745667046080,-329.76109559,0.0001726,2]
[359039821,1745667046090,-400.0,0.0001726,2]
[359039823,1745667046100,-400.0,0.0001726,2]
[359039825,1745667046111,-1409.49,0.0001726,2]
[359039827,1745667046121,-400.0,0.0001726,2]
[359039829,1745667046132,-400.0,0.0001726,2]
[359039831,1745667046142,-160.15,0.0001726,2]
[359039833,1745667046152,-400.0,0.0001726,2]
[359039835,1745667046161,-783.96,0.0001726,2]
[359039837,1745667046172,-323.75153324,0.0001726,2]
[359039840,1745667046184,-151.0,0.0001726,2]
[359039841,1745667046195,-400.0,0.0001726,2]
[359039844,1745667046205,-400.0,0.0001726,2]
[359039845,1745667046215,-1624.65,0.0001726,2]
[359039848,1745667046226,-400.0,0.0001726,2]
[359039850,1745667046237,-872.04,0.0001726,2]
[359039852,1745667046247,-500.0,0.0001726,2]
[359039854,1745667046257,-801.47,0.0001726,2]
[359039856,1745667046267,-400.0,0.0001726,2]
[359039857,1745667046276,-400.0,0.0001726,2]
[359039860,1745667046287,-240.99069605,0.0001726,2]
[359039862,1745667046298,-400.0,0.0001726,2]
[359039863,1745667046309,-400.0,0.0001726,2]
[359039865,1745667046319,-400.0,0.0001726,2]
[359039867,1745667046329,-400.0,0.0001726,2]
[359039869,1745667046340,-400.0,0.0001726,2]
[359039871,1745667046349,-400.0,0.0001726,2]
[359039873,1745667046360,-400.0,0.0001726,2]
[359039875,1745667046370,-400.0,0.0001726,2]
[359039877,1745667046380,-400.0,0.0001726,2]
[359039879,1745667046390,-400.0,0.0001726,2]
[359039881,1745667046401,-151.0,0.0001726,2]
[359039883,1745667046411,-400.0,0.0001726,2]
[359039885,1745667046420,-446.79,0.0001726,2]
[359039887,1745667046430,-400.0,0.0001726,2]
[359039889,1745667046440,-151.899093,0.0001726,2]
[359039891,1745667046450,-400.0,0.0001726,2]
[359039893,1745667046460,-400.0,0.0001726,2]
[359039895,1745667046471,-151.0,0.0001726,2]
[359039898,1745667046481,-400.0,0.0001726,2]
[359039900,1745667046491,-215.70305004,0.0001726,2]
[359039901,1745667046502,-400.0,0.0001726,2]
[359039904,1745667046512,-509.72,0.0001726,2]
[359039905,1745667046522,-400.0,0.0001726,2]
[359039907,1745667046531,-1485.3,0.0001726,2]
[359039910,1745667046542,-310.17859742,0.0001726,2]
[359039912,1745667046552,-1502.02,0.0001726,2]
[359039914,1745667046561,-151.0,0.0001726,2]
[359039916,1745667046571,-400.0,0.0001726,2]
[359039918,1745667046580,-400.0,0.0001726,2]
[359039920,1745667046590,-338.81,0.0001726,2]
[359039922,1745667046600,-400.0,0.0001726,2]
[359039923,1745667046609,-400.0,0.0001726,2]
[359039925,1745667046618,-400.0,0.0001726,2]
[359039927,1745667046627,-306.06599035,0.0001726,2]
[359039929,1745667046640,-400.0,0.0001726,2]
[359039931,1745667046650,-1933.65275202,0.0001726,2]
[359039939,1745667046711,-400.0,0.00016438,2]
[359039941,1745667046722,-146.30724798,0.0001726,2]
[359039943,1745667046732,-300.0,0.0001726,2]
[359039944,1745667046741,-1215.94,0.0001726,2]
[359039946,1745667046751,-1161.51437087,0.0001726,2]
[359039949,1745667046762,-39.76562913,0.0001726,2]
[359039951,1745667046771,-420.68,0.0001726,2]
[359039953,1745667046781,-159.13018146,0.0001726,2]
[359039955,1745667046793,-240.86981854,0.0001726,2]
[359039957,1745667046803,-151.0,0.0001726,2]
[359039959,1745667046812,-166.54792584,0.0001726,2]
[359039961,1745667046824,-233.45207416,0.0001726,2]
[359039963,1745667046834,-400.0,0.0001726,2]
[359039965,1745667046843,-300.0,0.0001726,2]
[359039967,1745667046852,-286.48559979,0.0001726,2]
[359039974,1745667046908,-391.45,0.00016712,2]
[359039976,1745667046917,-2973.248,0.00016986,2]
[359039978,1745667046926,-13.51440021,0.0001726,2]
[359039980,1745667046936,-1268.08,0.0001726,2]
[359039982,1745667046946,-894.4,0.0001726,2]
[359039984,1745667046955,-300.0,0.0001726,2]
[359039986,1745667046964,-1467.83,0.0001726,2]
[359039988,1745667046974,-583.58,0.0001726,2]
[359039990,1745667046983,-479.86,0.0001726,2]
[359039992,1745667046992,-300.0,0.0001726,2]
[359039994,1745667047002,-571.69,0.0001726,2]
[359039996,1745667047011,-400.0,0.0001726,2]
[359039998,1745667047020,-400.0,0.0001726,2]
[359040000,1745667047029,-151.0,0.0001726,2]
[359040002,1745667047038,-310.18852432,0.0001726,2]
[359040004,1745667047048,-305.16233563,0.0001726,2]
[359040006,1745667047057,-400.0,0.0001726,2]
[359040007,1745667047066,-1769.82,0.0001726,2]
[359040010,1745667047077,-307.91,0.0001726,2]
[359040012,1745667047086,-301.09,0.0001726,2]
[359040014,1745667047095,-400.0,0.0001726,2]
[359040016,1745667047104,-307.43537189,0.0001726,2]
[359040018,1745667047114,-408.65,0.0001726,2]
[359040019,1745667047122,-1756.86,0.0001726,2]
[359040022,1745667047132,-400.0,0.0001726,2]
[359040024,1745667047142,-400.0,0.0001726,2]
[359040026,1745667047151,-300.0,0.0001726,2]
[359040028,1745667047161,-1630.76,0.0001726,2]
[359040030,1745667047171,-1580.52,0.0001726,2]
[359040032,1745667047183,-400.0,0.0001726,2]
[359040034,1745667047193,-400.0,0.0001726,2]
[359040036,1745667047202,-400.0,0.0001726,2]
[359040038,1745667047212,-613.58,0.0001726,2]
[359040040,1745667047221,-400.0,0.0001726,2]
[359040042,1745667047232,-400.0,0.0001726,2]
[359040044,1745667047241,-1204.46,0.0001726,2]
[359040046,1745667047251,-151.0,0.0001726,2]
[359040048,1745667047260,-153.0,0.00017288,2]
[359040050,1745667047269,-316.8677381,0.00017288,2]
[359040052,1745667047281,-151.0,0.00017288,2]
[359040054,1745667047291,-151.0,0.00017288,2]
[359040056,1745667047301,-151.0,0.00017288,2]
[359040058,1745667047309,-151.0,0.00017288,2]
[359040060,1745667047319,-151.0,0.00017288,2]
[359040062,1745667047328,-1672.810538,0.00017288,2]
[359040064,1745667047338,-1672.810538,0.00017288,2]
[359040066,1745667047347,-69.54714385,0.00017288,2]
[359040069,1745667047359,-81.45285615,0.00017288,2]
[359040071,1745667047369,-187.251784,0.00017288,2]
[359040072,1745667047378,-269.0,0.0001729,2]
[359040075,1745667047388,-500.0,0.00017299,2]
[359040077,1745667047398,-500.0,0.00017299,2]
[359040079,1745667047407,-500.0,0.00017299,2]
[359040081,1745667047416,-508.40541627,0.00017299,2]
[359040082,1745667047425,-500.0,0.00017299,2]
[359040084,1745667047435,-519645.50589599,0.000173,2]
[359040087,1745667047450,-13649.78060727,0.000173,2]
[359040092,1745667047485,-18.64117352,0.000173,2]
[359040094,1745667047498,-2638.16271988,0.000173,2]
[359040096,1745667047511,-316.30000002,0.000173,2]
[359040098,1745667047522,-1210.55707798,0.000173,2]
[359040255,1745668042145,-410.4127238,0.00015438,2]
[359040256,1745668042168,-198.350158,0.00015718,2]
[359040257,1745668042189,-161.64073223,0.00016337,2]
[359040258,1745668042209,-1115.52486101,0.00016338,2]
[359040259,1745668046099,-169.89928816,0.00016338,2]
[359040260,1745668046120,-166.0,0.00016437,2]
[359040261,1745668046142,-60.81171184,0.00016437,2]
[359040262,1745668205172,15454.3656193,0.00023,120]
[359040278,1745668231796,-1124.74613055,0.00016338,2]
[359040279,1745668231806,-300.0,0.00016437,2]
[359040280,1745668231817,-1139.0,0.00016437,2]
[359040281,1745668231828,-211.83620853,0.00016438,2]
[359040282,1745668231838,-400.0,0.00016438,2]
[359040283,1745668231848,-400.0,0.00016438,2]
[359040284,1745668231857,-171.05,0.00016438,2]
[359040285,1745668231867,-400.0,0.00016438,2]
[359040286,1745668231878,-400.0,0.00016438,2]
[359040287,1745668231888,-406.84076531,0.00016438,2]
[359040288,1745668231899,-500.0,0.00016438,2]
[359040289,1745668231909,-400.0,0.00016438,2]
[359040290,1745668231919,-400.0,0.00016438,2]
[359040291,1745668231928,-259.8,0.00016438,2]
[359040293,1745668231937,-400.0,0.00016438,2]
[359040294,1745668231947,-400.0,0.00016438,2]
[359040295,1745668231957,-200.0,0.00016438,2]
[359040296,1745668231967,-230.75,0.00016438,2]
[359040297,1745668231976,-400.0,0.00016438,2]
[359040298,1745668231985,-400.0,0.00016438,2]
[359040299,1745668231996,-500.0,0.00016438,2]
[359040300,1745668232006,-400.0,0.00016438,2]
[359040301,1745668232015,-431.12,0.00016438,2]
[359040302,1745668232024,-479.54605281,0.00016438,2]
[359040303,1745668232034,-400.0,0.00016438,2]
[359040304,1745668232044,-400.0,0.00016438,2]
[359040305,1745668232054,-400.0,0.00016438,2]
[359040306,1745668232064,-1223.19,0.00016438,2]
[359040307,1745668232075,-476.41,0.00016438,2]
[359040308,1745668232086,-400.0,0.00016438,2]
[359040309,1745668232095,-400.0,0.00016438,2]
[359040310,1745668232105,-400.0,0.00016438,2]
[359040311,1745668232114,-400.0,0.00016438,2]
[359040312,1745668232124,-511.32,0.00016438,2]
[359040313,1745668232133,-396.64683731,0.00016438,2]
[359040314,1745668232143,-400.0,0.00016438,2]
[359040315,1745668232152,-400.0,0.00016438,2]
[359040316,1745668232162,-169.62873421,0.00016438,2]
[359040317,1745668232172,-400.0,0.00016438,2]
[359040318,1745668232181,-400.0,0.00016438,2]
[359040319,1745668232190,-1110.58,0.00016438,2]
[359040320,1745668232199,-400.0,0.00016438,2]
[359040321,1745668232209,-389.90295538,0.00016438,2]
[359040322,1745668232218,-400.0,0.00016438,2]
[359040323,1745668232228,-205.02138042,0.00016438,2]
[359040324,1745668232239,-400.0,0.00016438,2]
[359040325,1745668232249,-500.0,0.00016438,2]
[359040326,1745668232258,-500.0,0.00016438,2]
[359040327,1745668232268,-400.0,0.00016438,2]
[359040328,1745668232278,-735.05,0.00016438,2]
[359040329,1745668232289,-191.45,0.00016438,2]
[359040330,1745668232299,-400.0,0.00016438,2]
[359040331,1745668232312,-400.0,0.00016438,2]
[359040332,1745668232322,-407.12875188,0.00016438,2]
[359040333,1745668232332,-451.26,0.00016438,2]